bitfinex-derivatives/quotes_ETHF0:USTF0_20220103
["timestamp","ask_amount","ask_price","bid_price","bid_amount"]
[1641171230815,0.88672499,3813.0,3812.9,0.39273137]
[1641171233916,0.88672499,3813.1,3812.9,1.58160495]
[1641171234916,0.88672499,3813.2,3812.9,1.58160495]
[1641171235117,0.88672499,3813.2,3813.0,0.31612237]
[1641171235717,0.88672499,3813.2,3813.1,0.076609]
[1641171237522,0.88672499,3813.2,3813.1,0.39273137]
[1641171238322,0.88672499,3813.3,3813.1,0.39273137]
[1641171239123,0.88672499,3813.3,3813.2,0.31612237]
[1641171239524,1.11671599,3813.3,3813.2,0.31612237]
[1641171240024,0.88672499,3813.3,3813.2,0.39273137]
[1641171240223,0.88672499,3813.3,3813.2,0.31612237]
[1641171240427,1.11671599,3813.3,3813.2,0.31612237]
[1641171240627,0.88672499,3813.3,3813.2,0.31612237]
[1641171240826,0.88672499,3813.3,3813.0,1.18887358]
[1641171241432,0.88672499,3813.3,3813.1,0.076609]
[1641171242028,0.55826276,3813.4,3813.0,1.18887358]
[1641171242229,1.47553463,3813.9,3813.2,0.128157]
[1641171243229,1.47553463,3813.9,3813.3,2.00479]
[1641171243530,0.128157,3813.9,3813.3,2.00479]
[1641171243931,2.00479,3814.0,3813.3,2.00479]
[1641171249236,2.132947,3814.0,3813.3,2.00479]
[1641171250544,2.00479,3814.0,3813.3,2.00479]
[1641171253749,2.00479,3814.0,3813.6,1.18886411]
[1641171254651,2.00479,3814.0,3813.7,1.18886411]
[1641171254853,2.00479,3814.0,3813.8,0.076609]
[1641171255452,0.229991,3814.0,3813.7,1.18886411]
[1641171256151,0.229991,3814.0,3813.8,0.076609]
[1641171256354,0.128157,3814.1,3813.8,0.076609]
[1641171256552,1.18272492,3814.3,3813.8,0.076609]
[1641171256955,1.18272492,3814.3,3813.7,1.18886411]
[1641171257252,1.5,3814.2,3813.7,1.18886411]
[1641171257452,1.18272492,3814.3,3813.7,1.18886411]
[1641171257652,0.128157,3814.2,3813.7,1.18886411]
[1641171259154,0.128157,3814.2,3813.3,3.19365411]
[1641171259155,1.18272492,3813.9,3813.3,3.19365411]
[1641171259355,1.18272492,3813.9,3813.3,3.32181111]
[1641171259558,2.00479,3813.8,3813.3,1.31702111]
[1641171259756,2.00479,3813.8,3813.1,1.18886411]
[1641171261568,2.00479,3813.8,3812.7,2.00479]
[1641171261569,2.00479,3813.8,3812.9,1.18886411]
[1641171262261,2.88991552,3813.8,3813.2,0.8900962]
[1641171263063,1.5,3813.3,3813.2,0.8900962]
[1641171263362,2.674748,3813.3,3812.9,1e-08]
[1641171263563,2.00479,3813.2,3812.9,1e-08]
[1641171263762,2.00479,3813.2,3812.3,2.00479]
[1641171263763,1.5,3813.0,3812.8,0.36170141]
[1641171263963,1.729991,3812.9,3812.8,0.36170141]
[1641171264162,1.729991,3812.9,3812.8,1.41e-06]
[1641171264762,1.729991,3812.9,3812.2,0.7444207]
[1641171264964,1.5,3812.4,3811.9,4.9757927]
[1641171265165,0.8139,3812.4,3811.9,4.9757927]
[1641171265565,0.128157,3812.3,3811.9,2.9710027]
[1641171265764,0.96581413,3812.3,3811.5,2.00479]
[1641171266463,1.5,3812.2,3811.5,2.00479]
[1641171266664,0.96581413,3812.3,3811.5,2.00479]
[1641171268368,0.96581413,3812.3,3811.5,2.132947]
[1641171272668,0.128157,3812.3,3811.5,2.132947]
[1641171273970,0.128157,3812.3,3811.5,3.44383444]
[1641171279275,0.128157,3812.3,3811.5,3.31567744]
[1641171280175,0.128157,3812.3,3811.7,1.18761376]
[1641171281981,0.128157,3812.3,3811.7,1.82431376]
[1641171283983,0.128157,3812.3,3812.0,0.89073341]
[1641171284683,0.229991,3812.2,3812.0,0.89073341]
[1641171288087,0.128157,3812.3,3812.1,0.076609]
[1641171288487,0.229991,3812.2,3812.0,0.89073341]
[1641171289291,0.229991,3812.2,3811.7,1.52743341]
[1641171290297,0.128157,3812.3,3811.7,0.6367]
[1641171290498,0.128157,3812.3,3811.6,0.89073341]
[1641171291098,0.128157,3812.3,3811.6,1.01889041]
[1641171291498,0.128157,3812.3,3811.7,0.89073341]
[1641171293003,0.128157,3812.3,3811.6,1.17987764]
[1641171294802,0.128157,3812.3,3811.2,0.89073341]
[1641171295203,0.128157,3812.3,3811.3,0.89073341]
[1641171298912,0.128157,3812.3,3811.4,1.5]
[1641171300114,0.128157,3812.3,3811.3,0.89073341]
[1641171300612,0.128157,3812.3,3811.4,1.5]
[1641171301813,0.128157,3812.3,3811.5,1.31088744]
[1641171302212,0.128157,3812.3,3811.5,3.31567744]
[1641171303112,0.128157,3812.3,3811.5,2.00479]
[1641171305215,0.128157,3812.3,3811.1,2.89552341]
[1641171305416,0.81828978,3812.3,3811.1,2.89552341]
[1641171306418,2.00479,3811.9,3811.1,2.89552341]
[1641171306619,2.00479,3811.9,3811.1,2.00479]
[1641171310227,2.00479,3811.9,3811.1,2.132947]
[1641171311629,2.00479,3811.9,3811.1,3.02368041]
[1641171311829,2.00479,3811.9,3811.1,3.68688041]
[1641171313030,2.00479,3811.9,3811.1,3.55872341]
[1641171314233,2.00479,3811.9,3811.2,0.128157]
[1641171314532,2.00479,3812.4,3811.3,1.5]
[1641171314930,0.88482307,3812.9,3811.7,1.5]
[1641171315133,0.88482307,3812.9,3811.8,0.122356]
[1641171315331,0.88482307,3812.9,3811.9,1.5]
[1641171315531,0.88482307,3812.9,3811.9,2.2915]
[1641171315732,0.88482307,3812.9,3811.9,0.7915]
[1641171316332,0.88482307,3812.9,3812.5,2.00479]
[1641171317332,0.128157,3813.1,3812.5,2.00479]
[1641171320735,0.88482307,3812.7,3812.6,0.32938607]
[1641171321942,1.11481407,3812.7,3812.6,0.32938607]
[1641171323538,0.78815842,3812.7,3812.6,0.32938607]
[1641171324138,0.55816742,3812.7,3812.6,0.40599507]
[1641171324340,0.78815842,3812.7,3812.6,0.32938607]
[1641171324739,0.55816742,3812.7,3812.6,0.32938607]
[1641171325142,1.18101559,3812.9,3812.6,0.32938607]
[1641171325342,0.88570758,3812.7,3812.6,0.32938607]
[1641171325544,0.88570758,3812.7,3812.6,0.40599507]
[1641171325743,0.88570758,3812.7,3812.6,0.32938607]
[1641171326546,1.11569858,3812.7,3812.6,0.32938607]
[1641171327048,0.229991,3812.7,3812.6,0.32938607]
[1641171328747,0.78816692,3812.7,3812.6,0.32938607]
[1641171328947,0.55817592,3812.7,3812.6,0.40599507]
[1641171330048,0.55817592,3812.7,3812.6,0.32938607]
[1641171330249,0.78816692,3812.7,3812.6,0.32938607]
[1641171330753,0.55817592,3812.7,3812.6,0.32938607]
[1641171330950,0.88723338,3812.7,3812.6,0.32938607]
[1641171331151,1.11722438,3812.7,3812.6,0.32938607]
[1641171332055,0.78816692,3812.7,3812.6,0.32938607]
[1641171333953,0.229991,3812.7,3812.6,0.32938607]
[1641171334154,0.229991,3812.7,3811.8,1.78135203]
[1641171334560,0.229991,3812.7,3812.3,2.00479]
[1641171334855,1.60444131,3812.9,3812.3,2.00479]
[1641171335854,0.88564131,3812.9,3812.3,2.00479]
[1641171336257,0.88564131,3813.0,3812.7,0.89111525]
[1641171336556,0.229991,3812.9,3812.7,0.89111525]
[1641171338558,0.84349818,3812.8,3812.7,0.89111525]
[1641171340458,1.68319818,3812.8,3812.7,0.89111525]
[1641171341963,2.56883949,3812.8,3812.5,0.89111525]
[1641171342668,0.229991,3812.7,3812.5,0.89111525]
[1641171342864,0.229991,3812.7,3811.9,2.00479]
[1641171343464,1.729991,3812.7,3811.9,2.00479]
[1641171343664,1.729991,3812.7,3812.3,1.18819209]
[1641171343963,1.729991,3812.7,3811.9,2.00479]
[1641171344768,2.00479,3812.4,3811.7,1.78135203]
[1641171344968,0.128157,3812.3,3811.7,1.78135203]
[1641171345170,0.128157,3812.3,3811.5,0.74437055]
[1641171345969,0.86882441,3812.3,3811.5,0.74437055]
[1641171346170,0.86882441,3812.3,3811.4,21.1792]
[1641171346969,2.00479,3811.9,3811.4,21.1792]
[1641171347169,2.00479,3811.9,3811.1,2.127146]
[1641171348073,2.00479,3811.9,3811.1,2.00479]
[1641171350076,2.00479,3811.9,3811.1,3.632947]
[1641171350275,0.128157,3812.3,3811.2,1.31098025]
[1641171350579,0.128157,3812.3,3811.2,2.05008025]
[1641171351075,0.128157,3812.3,3811.7,2.00479]
[1641171351279,2.00479,3812.4,3811.7,2.00479]
[1641171355279,0.128157,3812.3,3811.7,2.00479]
[1641171355682,0.128157,3812.3,3811.9,1.18735525]
[1641171357581,1.03313145,3812.3,3811.9,1.18735525]
[1641171358981,2.00479,3812.0,3811.9,1.18735525]
[1641171359184,3.044281,3812.0,3811.3,1.78135203]
[1641171359381,1.5,3811.6,3811.3,1.78135203]
[1641171359583,0.128157,3811.5,3810.8,3.7154324]
[1641171359781,0.128157,3811.5,3811.0,1.78124633]
[1641171359985,2.75050814,3811.5,3811.0,1.78124633]
[1641171360184,2.75050814,3811.5,3810.7,2.22677912]
[1641171360384,2.21647394,3811.1,3810.4,2.9710027]
[1641171360584,2.79517394,3811.1,3810.4,2.9710027]
[1641171360985,2.00479,3810.5,3810.4,2.9710027]
[1641171361184,2.234781,3810.5,3809.6,2.00479]
[1641171361385,2.234781,3810.5,3809.7,0.128157]
[1641171361584,1.34409969,3810.4,3809.7,0.128157]
[1641171361984,0.128157,3810.4,3809.7,0.128157]
[1641171363389,0.128157,3810.4,3809.8,0.26250146]
[1641171364789,2.00479,3810.5,3809.8,0.26250146]
[1641171364991,2.00479,3810.5,3809.8,0.79120146]
[1641171365290,2.00479,3810.5,3809.9,1.5]
[1641171365691,2.00479,3810.5,3809.8,0.79120146]
[1641171366195,2.00479,3810.5,3810.2,0.88816452]
[1641171366392,2.00479,3810.5,3810.3,0.076609]
[1641171368494,2.00479,3810.5,3810.2,0.88816452]
[1641171368495,2.234781,3810.5,3810.2,0.88816452]
[1641171368704,2.234781,3810.5,3810.3,0.88816452]
[1641171368898,2.00479,3810.5,3810.4,0.076609]
[1641171369298,2.234781,3810.5,3810.3,0.88816452]
[1641171370700,2.234781,3810.5,3810.2,0.88816452]
[1641171371800,2.00479,3810.5,3810.3,0.076609]
[1641171372002,2.00479,3810.5,3810.3,0.768209]
[1641171372203,0.229991,3810.4,3810.3,0.6916]
[1641171372403,2.00479,3810.5,3810.3,0.6916]
[1641171372806,2.00479,3810.5,3810.4,0.076609]
[1641171373005,0.88356865,3811.8,3810.4,1.576609]
[1641171373204,2.00479,3811.4,3810.5,2.00479]
[1641171373421,0.128157,3811.3,3810.5,2.00479]
[1641171374906,0.128157,3811.3,3810.6,1.11807421]
[1641171375308,0.128157,3811.3,3810.9,2.00479]
[1641171377808,0.128157,3811.3,3810.3,0.6916]
[1641171378009,0.128157,3811.3,3810.1,23.08881812]
[1641171378911,0.128157,3811.3,3810.2,1.11753116]
[1641171379409,0.128157,3811.3,3810.9,2.00479]
[1641171382513,0.128157,3811.3,3810.5,2.00479]
[1641171382714,0.868657,3811.3,3810.5,2.00479]
[1641171383716,2.00479,3811.1,3810.5,2.00479]
[1641171394226,0.128157,3811.3,3810.1,20.2835]
[1641171394625,2.00479,3811.1,3810.2,2.00479]
[1641171395025,0.88356865,3810.9,3810.6,0.23315982]
[1641171395425,0.229991,3810.8,3810.6,0.23315982]
[1641171396125,1.11355965,3810.8,3810.6,0.23315982]
[1641171396326,1.11355965,3810.8,3810.4,1.7763151]
[1641171397127,0.88356865,3810.8,3810.4,1.7763151]
[1641171397929,0.88356865,3810.6,3810.3,2.00947492]
[1641171398127,0.88356865,3810.6,3810.4,0.076609]
[1641171398328,0.128157,3810.5,3810.4,0.076609]
[1641171398528,0.128157,3810.5,3810.3,2.00947492]
[1641171398729,0.128157,3810.5,3810.4,1.7763151]
[1641171399329,0.128157,3810.5,3810.4,1.8529241]
[1641171399531,0.128157,3810.5,3810.4,1.7763151]
[1641171400130,0.128157,3810.5,3810.4,0.23315982]
[1641171400330,0.88356865,3810.6,3810.4,0.30976882]
[1641171401336,0.88356865,3810.6,3810.4,0.076609]
[1641171402534,1.11355965,3810.6,3810.3,2.00947492]
[1641171402733,0.229991,3810.6,3810.5,0.23315982]
[1641171402934,0.229991,3810.6,3810.5,2.00947492]
[1641171403834,1.11355965,3810.6,3810.3,2.00947492]
[1641171404035,1.80955965,3810.6,3810.0,2.22041187]
[1641171404233,3.30955965,3810.6,3809.4,21.94425338]
[1641171404434,1.5,3810.2,3809.4,21.94425338]
[1641171404635,1.5,3810.2,3809.5,0.1131773]
[1641171405434,1.5,3810.2,3810.1,1.7871918]
[1641171405635,4.239571,3810.2,3810.1,1.7871918]
[1641171406035,5.08990851,3810.2,3810.1,1.7871918]
[1641171406539,5.08990851,3810.2,3810.1,2.6048918]
[1641171406836,5.08990851,3810.2,3810.1,0.8177]
[1641171407637,5.08990851,3810.2,3809.6,1.19173277]
[1641171408237,5.08990851,3810.2,3810.1,1.19173277]
[1641171408438,6.27074999,3810.2,3810.1,1.19173277]
[1641171409739,5.08990851,3810.2,3809.5,1.19173277]
[1641171409941,5.08990851,3810.2,3809.5,1.31988977]
[1641171410340,4.85991751,3810.2,3809.5,1.31988977]
[1641171410541,4.85991751,3810.2,3809.6,1.19173277]
[1641171411640,2.00479,3809.7,3809.6,1.19173277]
[1641171411839,2.00479,3809.7,3809.6,1.26834177]
[1641171412038,2.234781,3809.7,3809.6,1.19173277]
[1641171412239,2.00479,3809.7,3809.6,1.19173277]
[1641171412841,2.00479,3809.7,3809.6,1.26834177]
[1641171413041,2.234781,3809.7,3809.6,1.19173277]
[1641171413242,2.00479,3809.7,3809.6,1.19173277]
[1641171413744,2.00479,3809.7,3809.6,1.26834177]
[1641171414242,2.00479,3809.7,3809.6,0.076609]
[1641171415344,2.00479,3809.7,3809.6,1.26834177]
[1641171416144,2.00479,3809.7,3809.6,0.076609]
[1641171416843,2.234781,3809.7,3809.4,1.19173277]
[1641171417044,2.234781,3809.7,3809.5,1.19173277]
[1641171417343,2.00479,3809.7,3809.5,1.19173277]
[1641171417544,0.229991,3809.6,3809.5,1.19173277]
[1641171418244,0.229991,3809.6,3809.4,1.19173277]
[1641171419046,0.229991,3809.6,3809.3,1.19173277]
[1641171419245,2.00479,3809.7,3809.4,0.076609]
[1641171419446,2.00479,3809.7,3809.4,0.856309]
[1641171419946,0.229991,3809.6,3809.4,0.856309]
[1641171420149,2.00479,3809.7,3809.4,0.856309]
[1641171420346,2.00479,3809.7,3809.4,0.7797]
[1641171420948,0.229991,3809.6,3809.4,0.7797]
[1641171421149,2.00479,3809.7,3809.4,0.856309]
[1641171421548,2.00479,3809.7,3809.4,0.7797]
[1641171421848,0.229991,3809.6,3809.4,0.7797]
[1641171422853,2.00479,3809.7,3809.5,0.076609]
[1641171423049,2.00479,3809.7,3809.4,0.7797]
[1641171423950,2.00479,3809.7,3809.5,0.076609]
[1641171424151,0.229991,3809.6,3809.4,0.7797]
[1641171424350,0.128157,3810.0,3809.4,0.7797]
[1641171424551,2.00479,3809.5,3809.0,1.78115176]
[1641171424752,2.00479,3809.5,3808.9,0.128157]
[1641171424956,2.00479,3809.5,3809.3,2.22637756]
[1641171426252,2.00479,3809.5,3809.4,0.076609]
[1641171426452,2.00479,3809.5,3809.4,0.6086]
[1641171427254,2.00479,3809.5,3809.4,0.685209]
[1641171427556,2.00479,3809.5,3809.4,2.91158656]
[1641171428255,1.46888553,3809.5,3809.4,2.91158656]
[1641171429156,1.01070427,3810.0,3809.4,2.91158656]
[1641171430561,0.88254727,3809.7,3809.6,1.78741042]
[1641171430760,1.11253827,3809.7,3809.6,1.78741042]
[1641171430961,3.11732827,3809.7,3809.6,1.78741042]
[1641171431264,2.88733727,3809.7,3809.6,1.86401942]
[1641171431561,2.234781,3809.7,3809.6,1.78741042]
[1641171431762,2.234781,3809.7,3809.4,0.6086]
[1641171431968,2.234781,3809.7,3809.2,1.78741042]
[1641171432564,2.00479,3809.7,3809.2,1.78741042]
[1641171432766,0.88741028,3809.6,3809.3,1.78741042]
[1641171432965,0.229991,3809.5,3809.3,2.49991042]
[1641171433167,0.88741028,3809.6,3809.3,2.49991042]
[1641171433466,2.89220028,3809.7,3809.3,2.57651942]
[1641171433665,2.89220028,3809.7,3809.3,2.49991042]
[1641171434265,0.88741028,3809.6,3809.3,2.49991042]
[1641171434466,0.88741028,3809.6,3809.4,0.076609]
[1641171435265,2.89220028,3809.7,3809.4,0.076609]
[1641171435467,0.229991,3809.6,3809.3,0.7125]
[1641171435867,0.229991,3809.6,3809.4,0.076609]
[1641171436067,0.88741028,3809.7,3809.4,0.076609]
[1641171436467,0.229991,3809.6,3809.3,0.7125]
[1641171437067,0.88741028,3809.7,3809.4,0.076609]
[1641171437068,2.00479,3809.5,3809.4,0.076609]
[1641171438372,2.234781,3809.5,3809.3,0.840657]
[1641171438573,2.00479,3809.5,3809.4,0.076609]
[1641171440273,2.00479,3809.5,3809.4,0.21975923]
[1641171440771,2.234781,3809.5,3809.4,0.14315023]
[1641171440974,2.00479,3809.5,3809.4,0.14315023]
[1641171441276,2.00479,3809.5,3809.4,2.00627406]
[1641171441574,2.00479,3809.5,3809.4,2.48696506]
[1641171441772,2.00479,3809.9,3809.4,2.48696506]
[1641171443275,2.00479,3809.9,3809.6,1.78651483]
[1641171443476,0.229991,3809.8,3809.6,1.78651483]
[1641171445377,0.229991,3809.8,3809.6,1.86312383]
[1641171445878,1.11740128,3809.8,3809.6,1.86312383]
[1641171446080,1.11740128,3809.8,3809.5,0.14315023]
[1641171447280,1.11740128,3809.8,3809.3,1.78651483]
[1641171447881,0.88741028,3809.8,3809.3,1.78651483]
[1641171449686,0.88741028,3809.8,3809.3,1.92966506]
[1641171450789,0.88741028,3809.5,3809.2,0.14315023]
[1641171450987,0.229991,3809.4,3809.2,0.14315023]
[1641171453091,1.11740128,3809.4,3809.2,0.14315023]
[1641171453790,0.229991,3809.4,3809.2,0.14315023]
[1641171454693,1.11740128,3809.4,3809.2,0.14315023]
[1641171455392,0.229991,3809.3,3809.2,0.14315023]
[1641171458500,0.229991,3809.3,3809.1,2.00479]
[1641171459102,0.128157,3809.2,3809.1,2.00479]
[1641171461003,0.128157,3809.2,3808.7,5.32473426]
[1641171461706,0.128157,3809.2,3809.0,1.78651483]
[1641171462104,0.128157,3809.2,3809.1,2.081399]
[1641171463005,1.13469376,3809.7,3809.1,2.081399]
[1641171463408,2.02210404,3809.7,3809.1,2.081399]
[1641171463605,2.15026104,3809.7,3809.1,2.081399]
[1641171464208,2.15026104,3809.7,3809.1,2.00479]
[1641171464909,1.26285076,3809.7,3809.1,2.00479]
[1641171466307,1.26285076,3809.7,3809.6,1.1899355]
[1641171466508,1.49284176,3809.7,3809.6,1.1899355]
[1641171466710,1.49284176,3809.7,3809.1,2.00479]
[1641171466909,2.06244176,3809.7,3809.1,2.00479]
[1641171467412,2.94985204,3809.7,3809.4,1.18998008]
[1641171467712,2.94985204,3809.7,3808.9,1.78651483]
[1641171468109,2.00479,3809.2,3808.9,1.78651483]
[1641171468311,2.00479,3809.2,3809.0,0.076609]
[1641171469412,0.229991,3809.1,3808.6,1.78651483]
[1641171471616,0.229991,3809.1,3808.5,1.78651483]
[1641171472818,0.229991,3809.1,3808.5,1.91467183]
[1641171474321,2.00479,3808.8,3808.5,1.91467183]
[1641171474520,2.00479,3808.8,3808.6,0.076609]
[1641171474720,0.88634497,3809.3,3808.6,0.076609]
[1641171475122,0.88634497,3809.3,3808.6,2.14509045]
[1641171475322,0.88634497,3809.3,3808.8,1.5]
[1641171476324,2.00479,3809.7,3808.9,0.1138357]
[1641171476523,2.00479,3809.7,3809.0,1.78651483]
[1641171478125,2.00479,3809.7,3809.0,1.90035053]
[1641171478328,0.73550374,3809.6,3809.0,1.90035053]
[1641171478527,1.31650374,3809.6,3809.0,1.90035053]
[1641171479927,0.88634497,3809.5,3809.0,1.78651483]
[1641171480127,0.88634497,3809.5,3809.2,1.19005089]
[1641171480327,2.00479,3809.3,3809.2,1.19005089]
[1641171481630,2.89113497,3809.3,3809.1,1.19005089]
[1641171481830,0.229991,3809.2,3809.1,1.19005089]
[1641171482333,0.7886803,3809.2,3808.8,1.19005089]
[1641171483232,0.7886803,3809.2,3808.2,2.46980421]
[1641171483233,1.74020835,3809.1,3808.5,1.19005089]
[1641171483832,1.74020835,3809.1,3808.5,1.31820789]
[1641171484033,1.18151905,3809.1,3808.5,1.31820789]
[1641171484432,2.00479,3808.9,3808.5,1.31820789]
[1641171484632,2.00479,3808.9,3808.5,0.128157]
[1641171489942,2.00479,3808.9,3808.6,0.11397907]
[1641171490140,2.00479,3808.9,3808.7,0.076609]
[1641171490543,2.00479,3808.9,3808.6,0.11397907]
[1641171490544,0.229991,3808.8,3808.6,0.11397907]
[1641171490941,0.229991,3808.8,3808.7,0.076609]
[1641171491141,2.00479,3808.9,3808.6,0.11397907]
[1641171491344,2.00479,3808.9,3808.5,0.128157]
[1641171492747,2.00479,3808.9,3808.6,0.11398199]
[1641171492944,0.358148,3808.8,3808.6,0.11398199]
[1641171493347,1.5,3808.7,3807.8,1.78651483]
[1641171493543,11.608148,3808.8,3807.8,1.78651483]
[1641171493544,1.5,3808.2,3807.8,1.78651483]
[1641171493746,13.4221,3808.2,3807.8,1.78651483]
[1641171493944,1.5,3807.9,3807.5,2.22637756]
[1641171494244,1.5,3807.7,3807.5,2.22637756]
[1641171494445,4.239571,3807.6,3807.5,2.22637756]
[1641171494646,4.239571,3807.6,3807.2,2.96850726]
[1641171494846,1.5,3807.5,3807.2,1.9899292]
[1641171495049,1.628157,3807.5,3806.7,2.30236509]
[1641171496246,0.81540968,3807.4,3806.7,2.30236509]
[1641171496546,0.81540968,3807.4,3806.7,0.52011684]
[1641171496547,2.00479,3806.8,3806.7,0.52011684]
[1641171496745,2.234781,3806.8,3806.7,0.52011684]
[1641171496946,16.29805107,3806.8,3805.8,0.52011684]
[1641171497145,5.04805107,3806.8,3805.8,0.52011684]
[1641171497349,6.02518056,3806.8,3805.8,0.52011684]
[1641171497846,22.06326678,3806.6,3805.8,0.52011684]
[1641171498048,0.128157,3806.5,3805.3,2.00479]
[1641171498546,2.00479,3806.0,3805.3,2.00479]
[1641171498748,2.00479,3806.0,3805.3,2.132947]
[1641171500548,2.00479,3806.0,3805.3,3.632947]
[1641171500748,2.00479,3806.8,3805.9,1.5]
[1641171500949,2.00479,3806.8,3806.4,1.5]
[1641171501149,2.00479,3806.8,3806.4,1.628157]
[1641171501351,2.00479,3806.8,3806.4,0.128157]
[1641171502151,0.72067904,3807.6,3806.4,0.128157]
[1641171502351,0.88385331,3808.5,3806.7,1.5]
[1641171502551,2.00479,3808.1,3807.2,2.00479]
[1641171502753,1.10311866,3808.0,3807.2,2.00479]
[1641171503151,1.10311866,3808.0,3807.3,0.128157]
[1641171503951,1.10311866,3808.0,3807.2,2.00479]
[1641171505655,1.5,3807.9,3807.2,2.00479]
[1641171505852,1.5,3807.9,3806.8,2.00479]
[1641171506052,1.10311866,3808.0,3806.8,2.00479]
[1641171506653,2.00479,3807.5,3806.8,2.00479]
[1641171506853,0.86601808,3807.4,3806.8,2.00479]
[1641171507255,1.63441808,3807.4,3806.8,2.00479]
[1641171510358,1.63441808,3807.4,3806.8,2.132947]
[1641171510557,1.63441808,3807.4,3806.8,2.00479]
[1641171521071,1.63441808,3807.4,3806.8,2.132947]
[1641171521271,1.63441808,3807.4,3806.8,2.00479]
[1641171523376,1.5,3807.2,3806.8,2.00479]
[1641171523575,1.4413236,3807.1,3806.8,2.00479]
[1641171523775,0.229991,3807.0,3806.8,2.00479]
[1641171524576,1.28512632,3806.9,3806.8,2.00479]
[1641171524780,1.28512632,3806.9,3806.8,2.081399]
[1641171525077,1.51511732,3806.9,3806.8,2.00479]
[1641171527580,1.28512632,3806.9,3806.8,2.081399]
[1641171527980,2.00479,3807.5,3806.8,2.081399]
[1641171527981,2.75870363,3807.5,3806.8,2.081399]
[1641171528181,2.88686063,3807.5,3806.8,2.081399]
[1641171530087,2.88686063,3807.5,3806.8,2.00479]
[1641171541998,2.132947,3807.5,3806.8,2.00479]
[1641171545005,0.88385331,3807.0,3806.8,2.00479]
[1641171545205,0.88385331,3807.0,3806.9,0.076609]
[1641171546605,0.55898467,3807.4,3806.9,0.076609]
[1641171546606,0.88385331,3807.1,3806.9,0.076609]
[1641171546805,1.11384431,3807.1,3806.8,2.00479]
[1641171547007,1.11384431,3807.1,3806.9,0.076609]
[1641171547605,0.88385331,3807.2,3806.9,0.16977045]
[1641171547805,1.16862245,3807.5,3807.1,2.81241174]
[1641171548005,1.16862245,3807.5,3807.2,0.122356]
[1641171548204,1.16862245,3807.5,3807.3,0.076609]
[1641171549008,1.16862245,3807.8,3807.3,0.076609]
[1641171549407,1.16862245,3807.8,3807.5,2.00479]
[1641171549607,1.16862245,3807.8,3807.6,0.076609]
[1641171549907,0.229991,3807.7,3807.5,2.00479]
[1641171550207,0.94475285,3807.9,3807.5,2.00479]
[1641171553010,1.72754802,3807.8,3807.5,2.00479]
[1641171553210,0.229991,3807.7,3807.5,2.00479]
[1641171554112,1.39861345,3807.7,3807.5,2.00479]
[1641171554812,0.55892557,3807.6,3807.5,1.12093669]
[1641171555915,0.55892557,3807.6,3806.8,3.18439511]
[1641171556213,12.56307693,3807.3,3806.8,1.17960511]
[1641171556416,13.37647693,3807.3,3806.8,1.17960511]
[1641171556715,0.78801735,3807.1,3806.8,1.17960511]
[1641171556913,1.66998984,3807.0,3806.8,1.17960511]
[1641171557613,4.00958,3806.9,3806.8,1.17960511]
[1641171558417,4.00958,3806.9,3806.0,1.17960511]
[1641171559013,4.00958,3806.9,3806.1,0.128157]
[1641171559513,0.55892557,3806.8,3806.2,2.00479]
[1641171560515,0.55892557,3806.8,3806.3,0.093177]
[1641171560717,1.73734977,3806.8,3806.7,1.17960511]
[1641171560915,1.96734077,3806.8,3806.7,1.17960511]
[1641171562416,1.96734077,3806.8,3806.3,0.093177]
[1641171563016,1.73734977,3806.8,3806.3,0.093177]
[1641171563215,2.42554977,3806.8,3806.3,0.093177]
[1641171563619,0.55892557,3806.7,3806.3,0.093177]
[1641171564718,0.558,3806.7,3806.3,0.093177]
[1641171566420,0.55903577,3806.6,3806.3,0.093177]
[1641171566621,0.229991,3806.5,3806.3,0.093177]
[1641171567623,0.93490039,3806.4,3806.3,0.093177]
[1641171568525,0.93490039,3806.4,3805.8,0.51499742]
[1641171568526,1.49393616,3806.4,3805.8,0.51499742]
[1641171569327,0.88577034,3806.1,3805.8,0.51499742]
[1641171569527,0.88577034,3806.1,3805.9,0.076609]
[1641171569726,0.229991,3806.0,3805.8,0.51499742]
[1641171570127,1.07702591,3805.9,3805.8,0.51499742]
[1641171570329,1.07702591,3805.9,3805.8,0.49842942]
[1641171570528,1.07702591,3805.9,3805.8,0.076609]
[1641171571129,1.30701691,3805.9,3805.7,3.77415297]
[1641171571329,1.07702591,3805.9,3805.8,0.076609]
[1641171571529,1.07702591,3805.9,3805.8,0.204766]
[1641171571931,1.07702591,3805.9,3805.7,3.77415297]
[1641171571932,2.19278725,3805.9,3805.7,3.77415297]
[1641171572129,2.92478725,3805.9,3805.7,2.00479]
[1641171572929,2.92478725,3805.9,3805.7,2.081399]
[1641171573131,1.80902591,3805.9,3805.7,2.081399]
[1641171573330,1.07702591,3805.9,3805.7,2.081399]
[1641171576836,0.229991,3805.8,3805.7,2.00479]
[1641171577640,0.229991,3805.8,3805.3,2.00479]
[1641171578440,1.5,3805.5,3805.1,2.19118339]
[1641171578638,1.5,3805.5,3805.1,1.76936297]
[1641171578839,2.81363753,3805.7,3804.7,1.76936297]
[1641171579238,1.31363753,3805.7,3804.7,1.76936297]
[1641171579739,2.00479,3805.2,3804.7,1.76936297]
[1641171579939,0.128157,3805.1,3804.7,1.76936297]
[1641171580339,0.128157,3805.1,3804.9,1.18987426]
[1641171580541,0.95688507,3805.0,3804.9,1.18987426]
[1641171582443,0.95688507,3805.0,3804.8,1.18987426]
[1641171583342,0.95688507,3805.0,3804.7,1.18987426]
[1641171583842,0.72689407,3805.0,3804.8,0.076609]
[1641171584043,0.95688507,3805.0,3804.7,1.18987426]
[1641171584244,0.72689407,3805.0,3804.7,1.18987426]
[1641171584647,0.72689407,3805.0,3804.8,0.076609]
[1641171585745,2.00479,3805.2,3804.8,1.26648326]
[1641171586343,2.00479,3805.2,3804.8,0.076609]
[1641171586545,0.88577034,3805.1,3804.9,0.09320083]
[1641171586746,0.88577034,3805.1,3805.0,0.076609]
[1641171587744,0.88577034,3805.1,3805.0,0.16980983]
[1641171588546,0.229991,3805.1,3805.0,0.09320083]
[1641171588746,2.00479,3805.2,3805.0,0.09320083]
[1641171589648,0.229991,3805.1,3804.8,1.76936297]
[1641171589849,0.88577034,3805.2,3804.9,0.076609]
[1641171590248,0.88577034,3805.2,3804.8,1.76936297]